[Event "Titled Tuesday Blitz February 15 Late 2022"]
[White "Sadhwani, Raunak"]
[Black "Aradhya, Garg"]
[WhiteFideId "35093487"]
[BlackFideId "25006746"]
[WhiteElo "2616"]
[BlackElo "2169"]
[Result "1-0"]
[Round "02"]
[TimeControl "180+1"]
[Date "2022.02.15"]
[WhiteClock "0:00:14"]
[BlackClock "0:00:08"]

1. d4 {[%clk 0:03:00]}  d5 {[%clk 0:02:59]} 2. Nf3 {[%clk 0:03:01]}  Nf6 {[%clk 0:02:59]} 3. Bf4 {[%clk 0:03:02]}  c5 {[%clk 0:02:59]} 4. e3 {[%clk 0:03:02]}  Nc6 {[%clk 0:03:00]} 5. Nbd2 {[%clk 0:03:03]}  Nh5 {[%clk 0:02:59]} 6. Be5 {[%clk 0:02:56]}  e6 {[%clk 0:03:00]} 7. Bb5 {[%clk 0:02:53]}  Bd7 {[%clk 0:02:48]} 8. Bxc6 {[%clk 0:02:48]}  Bxc6 {[%clk 0:02:48]} 9. h3 {[%clk 0:02:49]}  Nf6 {[%clk 0:02:47]} 10. O-O {[%clk 0:02:49]}  Be7 {[%clk 0:02:46]} 11. c3 {[%clk 0:02:48]}  O-O {[%clk 0:02:46]} 12. a4 {[%clk 0:02:48]}  Rc8 {[%clk 0:02:45]} 13. Bh2 {[%clk 0:02:48]}  a5 {[%clk 0:02:41]} 14. Ne5 {[%clk 0:02:48]}  Be8 {[%clk 0:02:41]} 15. Qb3 {[%clk 0:02:44]}  c4 {[%clk 0:02:32]} 16. Qc2 {[%clk 0:02:36]}  b5 {[%clk 0:02:28]} 17. axb5 {[%clk 0:02:32]}  Bxb5 {[%clk 0:02:29]} 18. e4 {[%clk 0:02:33]}  a4 {[%clk 0:02:07]} 19. exd5 {[%clk 0:02:29]}  exd5 {[%clk 0:02:06]} 20. Rfe1 {[%clk 0:02:28]}  Bd6 {[%clk 0:02:04]} 21. Re3 {[%clk 0:02:24]}  Re8 {[%clk 0:02:03]} 22. Rae1 {[%clk 0:02:24]}  Qc7 {[%clk 0:02:03]} 23. Nb1 {[%clk 0:02:13]}  g6 {[%clk 0:01:20]} 24. Na3 {[%clk 0:02:04]}  Bc6 {[%clk 0:01:20]} 25. Kh1 {[%clk 0:01:59]}  Kg7 {[%clk 0:01:19]} 26. f3 {[%clk 0:01:47]}  Rb8 {[%clk 0:00:59]} 27. g4 {[%clk 0:01:33]}  Rb3 {[%clk 0:00:52]} 28. Qf2 {[%clk 0:01:17]}  Nd7 {[%clk 0:00:46]} 29. R1e2 {[%clk 0:00:55]}  Nxe5 {[%clk 0:00:44]} 30. Bxe5+ {[%clk 0:00:52]}  Bxe5 {[%clk 0:00:44]} 31. Rxe5 {[%clk 0:00:49]}  Rxe5 {[%clk 0:00:41]} 32. Rxe5 {[%clk 0:00:50]}  Qb6 {[%clk 0:00:29]} 33. Re2 {[%clk 0:00:49]}  Bd7 {[%clk 0:00:29]} 34. Kg2 {[%clk 0:00:49]}  Be6 {[%clk 0:00:22]} 35. Rd2 {[%clk 0:00:39]}  Qd6 {[%clk 0:00:22]} 36. Qg3 {[%clk 0:00:29]}  Qxg3+ {[%clk 0:00:20]} 37. Kxg3 {[%clk 0:00:30]}  Kf6 {[%clk 0:00:19]} 38. h4 {[%clk 0:00:27]}  h6 {[%clk 0:00:19]} 39. Kf2 {[%clk 0:00:23]}  g5 {[%clk 0:00:19]} 40. h5 {[%clk 0:00:24]}  Ke7 {[%clk 0:00:18]} 41. Re2 {[%clk 0:00:21]}  Kd6 {[%clk 0:00:19]} 42. Kg3 {[%clk 0:00:21]}  Rb8 {[%clk 0:00:17]} 43. Nb1 {[%clk 0:00:18]}  Rb3 {[%clk 0:00:16]} 44. f4 {[%clk 0:00:16]}  f6 {[%clk 0:00:15]} 45. fxg5 {[%clk 0:00:14]}  fxg5 {[%clk 0:00:16]} 46. Rc2 {[%clk 0:00:13]}  Rb8 {[%clk 0:00:16]} 47. Nd2 {[%clk 0:00:13]}  Ra8 {[%clk 0:00:15]} 48. Nf3 {[%clk 0:00:13]}  a3 {[%clk 0:00:15]} 49. bxa3 {[%clk 0:00:14]}  Rxa3 {[%clk 0:00:15]} 50. Ne5 {[%clk 0:00:14]}  Ke7 {[%clk 0:00:13]} 51. Kf3 {[%clk 0:00:14]}  Bd7 {[%clk 0:00:12]} 52. Ke3 {[%clk 0:00:12]}  Ba4 {[%clk 0:00:12]} 53. Rc1 {[%clk 0:00:12]}  Ra2 {[%clk 0:00:12]} 54. Rf1 {[%clk 0:00:11]}  Be8 {[%clk 0:00:11]} 55. Rb1 {[%clk 0:00:09]}  Rc2 {[%clk 0:00:10]} 56. Rb6 {[%clk 0:00:08]}  Rxc3+ {[%clk 0:00:10]} 57. Kd2 {[%clk 0:00:09]}  Rg3 {[%clk 0:00:09]} 58. Rb7+ {[%clk 0:00:05]}  Kd6 {[%clk 0:00:08]} 59. Rb6+ {[%clk 0:00:05]}  Kc7 {[%clk 0:00:08]} 60. Ra6 {[%clk 0:00:06]}  c3+ {[%clk 0:00:08]} 61. Kc2 {[%clk 0:00:06]}  Bb5 {[%clk 0:00:08]} 62. Ra5 {[%clk 0:00:06]}  Kb6 {[%clk 0:00:08]} 63. Ra8 {[%clk 0:00:06]}  Bc6 {[%clk 0:00:06]} 64. Ra3 {[%clk 0:00:06]}  Bb5 {[%clk 0:00:06]} 65. Rxc3 {[%clk 0:00:07]}  Rg2+ {[%clk 0:00:06]} 66. Kb3 {[%clk 0:00:07]}  Rg1 {[%clk 0:00:04]} 67. Rc8 {[%clk 0:00:06]}  Rb1+ {[%clk 0:00:04]} 68. Kc2 {[%clk 0:00:06]}  Rg1 {[%clk 0:00:04]} 69. Rh8 {[%clk 0:00:06]}  Rg2+ {[%clk 0:00:04]} 70. Kc3 {[%clk 0:00:06]}  Rg3+ {[%clk 0:00:04]} 71. Kb4 {[%clk 0:00:07]}  Bc4 {[%clk 0:00:03]} 72. Rxh6+ {[%clk 0:00:07]}  Kc7 {[%clk 0:00:03]} 73. Kc5 {[%clk 0:00:07]}  Ba6 {[%clk 0:00:02]} 74. Rxa6 {[%clk 0:00:07]}  Kb7 {[%clk 0:00:02]} 75. Rg6 {[%clk 0:00:06]}  Kc7 {[%clk 0:00:03]} 76. Kxd5 {[%clk 0:00:07]}  Kb7 {[%clk 0:00:03]} 77. Rxg5 {[%clk 0:00:07]}  Kc7 {[%clk 0:00:03]} 78. Rg6 {[%clk 0:00:08]}  Kb7 {[%clk 0:00:03]} 79. h6 {[%clk 0:00:09]}  Rh3 {[%clk 0:00:04]} 80. g5 {[%clk 0:00:09]}  Kc7 {[%clk 0:00:04]} 81. Rg7+ {[%clk 0:00:10]}  Kb6 {[%clk 0:00:05]} 82. h7 {[%clk 0:00:10]}  Kb5 {[%clk 0:00:05]} 83. g6 {[%clk 0:00:11]}  Kb4 {[%clk 0:00:05]} 84. Rg8 {[%clk 0:00:11]}  Kc3 {[%clk 0:00:06]} 85. h8=Q {[%clk 0:00:11]}  Rxh8 {[%clk 0:00:06]} 86. Rxh8 {[%clk 0:00:12]}  Kd2 {[%clk 0:00:06]} 87. g7 {[%clk 0:00:13]}  Ke3 {[%clk 0:00:07]} 88. g8=Q {[%clk 0:00:13]}  Kd2 {[%clk 0:00:07]} 89. Qg3 {[%clk 0:00:13]}  Kc2 {[%clk 0:00:07]} 90. Rh2+ {[%clk 0:00:13]}  Kd1 {[%clk 0:00:08]} 91. Qg1# {[%clk 0:00:14]} 1-0


[Site "https://www.chess.com"]

[Event "Titled Tuesday Blitz February 15 Late 2022"]
[White "Samarth, J Rao"]
[Black "Chernomordik, Pavel"]
[WhiteFideId "46652370"]
[BlackFideId "2804530"]
[WhiteElo "1514"]
[BlackElo "2249"]
[Result "0-1"]
[Round "02"]
[TimeControl "180+1"]
[Date "2022.02.16"]
[WhiteClock "0:00:00"]
[BlackClock "0:00:10"]

1. c4 {[%clk 0:03:00]}  g6 {[%clk 0:02:59]} 2. d4 {[%clk 0:03:00]}  Bg7 {[%clk 0:02:59]} 3. Nf3 {[%clk 0:03:00]}  d6 {[%clk 0:02:59]} 4. e4 {[%clk 0:03:00]}  Nc6 {[%clk 0:02:56]} 5. d5 {[%clk 0:02:58]}  Ne5 {[%clk 0:02:56]} 6. Nxe5 {[%clk 0:02:58]}  Bxe5 {[%clk 0:02:55]} 7. f4 {[%clk 0:02:59]}  Bg7 {[%clk 0:02:54]} 8. Be2 {[%clk 0:02:59]}  e6 {[%clk 0:02:53]} 9. O-O {[%clk 0:02:57]}  Ne7 {[%clk 0:02:47]} 10. Nc3 {[%clk 0:02:49]}  O-O {[%clk 0:02:45]} 11. Bd3 {[%clk 0:02:47]}  c6 {[%clk 0:02:42]} 12. dxe6 {[%clk 0:02:35]}  fxe6 {[%clk 0:02:39]} 13. Qe2 {[%clk 0:02:32]}  c5 {[%clk 0:02:36]} 14. Be3 {[%clk 0:02:25]}  Nc6 {[%clk 0:02:35]} 15. Rad1 {[%clk 0:02:15]}  Nd4 {[%clk 0:02:34]} 16. Qe1 {[%clk 0:02:12]}  Bd7 {[%clk 0:02:33]} 17. Bb1 {[%clk 0:02:11]}  Qb6 {[%clk 0:02:27]} 18. b3 {[%clk 0:02:08]}  Qb4 {[%clk 0:02:24]} 19. Ne2 {[%clk 0:02:06]}  Qxe1 {[%clk 0:02:19]} 20. Rfxe1 {[%clk 0:02:07]}  e5 {[%clk 0:02:19]} 21. fxe5 {[%clk 0:01:45]}  dxe5 {[%clk 0:02:17]} 22. Nc3 {[%clk 0:01:42]}  Bc6 {[%clk 0:02:12]} 23. Nd5 {[%clk 0:01:42]}  Rf7 {[%clk 0:02:10]} 24. Bd3 {[%clk 0:01:32]}  Raf8 {[%clk 0:02:08]} 25. Rf1 {[%clk 0:01:33]}  h6 {[%clk 0:02:03]} 26. g3 {[%clk 0:01:30]}  Bd7 {[%clk 0:01:57]} 27. Kg2 {[%clk 0:01:30]}  Bg4 {[%clk 0:01:55]} 28. Rxf7 {[%clk 0:01:16]}  Rxf7 {[%clk 0:01:51]} 29. Rf1 {[%clk 0:01:16]}  Bf3+ {[%clk 0:01:49]} 30. Kg1 {[%clk 0:01:13]}  b6 {[%clk 0:01:39]} 31. Rf2 {[%clk 0:01:07]}  g5 {[%clk 0:01:36]} 32. h3 {[%clk 0:01:06]}  Kf8 {[%clk 0:01:26]} 33. Kh2 {[%clk 0:01:02]}  Ke8 {[%clk 0:01:25]} 34. g4 {[%clk 0:01:00]}  Kd7 {[%clk 0:01:21]} 35. Kg3 {[%clk 0:01:00]}  h5 {[%clk 0:01:09]} 36. Bxd4 {[%clk 0:00:43]}  h4+ {[%clk 0:01:06]} 37. Kh2 {[%clk 0:00:43]}  exd4 {[%clk 0:01:04]} 38. Be2 {[%clk 0:00:39]}  Be5+ {[%clk 0:01:03]} 39. Kg1 {[%clk 0:00:39]}  Bxe2 {[%clk 0:00:54]} 40. Rxf7+ {[%clk 0:00:38]}  Ke6 {[%clk 0:00:49]} 41. Rxa7 {[%clk 0:00:18]}  d3 {[%clk 0:00:47]} 42. Kf2 {[%clk 0:00:17]}  Bd4+ {[%clk 0:00:42]} 43. Ke1 {[%clk 0:00:16]}  Bf3 {[%clk 0:00:42]} 44. Kd2 {[%clk 0:00:13]}  Bg2 {[%clk 0:00:38]} 45. Kxd3 {[%clk 0:00:11]}  Bxh3 {[%clk 0:00:36]} 46. Rb7 {[%clk 0:00:04]}  Bxg4 {[%clk 0:00:12]} 47. Rxb6+ {[%clk 0:00:01]}  Ke5 {[%clk 0:00:12]} 48. Rb7 {[%clk 0:00:01]}  Bf3 {[%clk 0:00:10]} 49. Re7+ {[%clk 0:00:00]}  Kd6 {[%clk 0:00:10]} 0-1


[Site "https://www.chess.com"]

[Event "Titled Tuesday Blitz February 15 Late 2022"]
[White "Sjugirov, Sanan"]
[Black "Riehle, Marco"]
[WhiteFideId "4189302"]
[BlackFideId "12904392"]
[WhiteElo "2602"]
[BlackElo "2462"]
[Result "1/2-1/2"]
[Round "02"]
[TimeControl "180+1"]
[Date "2022.02.15"]
[WhiteClock "0:00:05"]
[BlackClock "0:00:13"]

1. e4 {[%clk 0:03:00]}  e5 {[%clk 0:02:59]} 2. Nf3 {[%clk 0:03:00]}  Nf6 {[%clk 0:02:59]} 3. Nxe5 {[%clk 0:02:59]}  Nxe4 {[%clk 0:02:59]} 4. Qe2 {[%clk 0:02:55]}  Qe7 {[%clk 0:03:00]} 5. Qxe4 {[%clk 0:02:52]}  d6 {[%clk 0:03:00]} 6. d4 {[%clk 0:02:51]}  dxe5 {[%clk 0:03:00]} 7. dxe5 {[%clk 0:02:46]}  Nc6 {[%clk 0:03:00]} 8. Bb5 {[%clk 0:02:28]}  Bd7 {[%clk 0:03:00]} 9. O-O {[%clk 0:02:21]}  O-O-O {[%clk 0:02:58]} 10. Nc3 {[%clk 0:01:55]}  a6 {[%clk 0:02:54]} 11. Ba4 {[%clk 0:01:55]}  Nxe5 {[%clk 0:02:54]} 12. Bxd7+ {[%clk 0:01:53]}  Rxd7 {[%clk 0:02:54]} 13. Be3 {[%clk 0:01:34]}  Nc6 {[%clk 0:02:54]} 14. Qf3 {[%clk 0:01:26]}  f6 {[%clk 0:02:36]} 15. Rad1 {[%clk 0:01:24]}  Rxd1 {[%clk 0:02:33]} 16. Rxd1 {[%clk 0:01:25]}  Qe6 {[%clk 0:02:32]} 17. Bf4 {[%clk 0:01:13]}  Bb4 {[%clk 0:02:21]} 18. Nd5 {[%clk 0:01:11]}  Rd8 {[%clk 0:02:13]} 19. Nxc7 {[%clk 0:00:57]}  Rxd1+ {[%clk 0:02:10]} 20. Qxd1 {[%clk 0:00:58]}  Qxa2 {[%clk 0:02:10]} 21. Nd5 {[%clk 0:00:39]}  Bc5 {[%clk 0:01:34]} 22. h3 {[%clk 0:00:34]}  f5 {[%clk 0:01:29]} 23. b3 {[%clk 0:00:26]}  Qb2 {[%clk 0:01:23]} 24. Qh5 {[%clk 0:00:20]}  Qxc2 {[%clk 0:01:16]} 25. Qe8+ {[%clk 0:00:10]}  Nd8 {[%clk 0:01:17]} 26. Ne7+ {[%clk 0:00:04]}  Bxe7 {[%clk 0:01:17]} 27. Qxe7 {[%clk 0:00:05]}  Qd1+ {[%clk 0:01:14]} 28. Kh2 {[%clk 0:00:05]}  Qd7 {[%clk 0:01:15]} 29. Qe5 {[%clk 0:00:04]}  Nc6 {[%clk 0:01:13]} 30. Qc5 {[%clk 0:00:04]}  b5 {[%clk 0:01:00]} 31. Qb6 {[%clk 0:00:04]}  g5 {[%clk 0:00:55]} 32. Qxa6+ {[%clk 0:00:04]}  Qb7 {[%clk 0:00:52]} 33. Qxb7+ {[%clk 0:00:04]}  Kxb7 {[%clk 0:00:53]} 34. Bxg5 {[%clk 0:00:05]}  b4 {[%clk 0:00:51]} 35. Kg3 {[%clk 0:00:04]}  Kb6 {[%clk 0:00:49]} 36. Kf3 {[%clk 0:00:02]}  Nd4+ {[%clk 0:00:48]} 37. Ke3 {[%clk 0:00:02]}  Nxb3 {[%clk 0:00:48]} 38. Kd3 {[%clk 0:00:03]}  Kb5 {[%clk 0:00:44]} 39. g4 {[%clk 0:00:03]}  fxg4 {[%clk 0:00:43]} 40. hxg4 {[%clk 0:00:04]}  Nc5+ {[%clk 0:00:44]} 41. Kc2 {[%clk 0:00:03]}  b3+ {[%clk 0:00:43]} 42. Kb2 {[%clk 0:00:03]}  Kc4 {[%clk 0:00:43]} 43. f3 {[%clk 0:00:02]}  Nd3+ {[%clk 0:00:43]} 44. Kb1 {[%clk 0:00:02]}  Ne5 {[%clk 0:00:43]} 45. f4 {[%clk 0:00:02]}  Nxg4 {[%clk 0:00:44]} 46. f5 {[%clk 0:00:03]}  Ne5 {[%clk 0:00:44]} 47. f6 {[%clk 0:00:02]}  Nf7 {[%clk 0:00:45]} 48. Bf4 {[%clk 0:00:02]}  h5 {[%clk 0:00:44]} 49. Bg3 {[%clk 0:00:03]}  Kc3 {[%clk 0:00:44]} 50. Bh4 {[%clk 0:00:03]}  Nh6 {[%clk 0:00:42]} 51. Be1+ {[%clk 0:00:03]}  Kc4 {[%clk 0:00:42]} 52. Kb2 {[%clk 0:00:04]}  Nf7 {[%clk 0:00:42]} 53. Bh4 {[%clk 0:00:04]}  Kb4 {[%clk 0:00:40]} 54. Be1+ {[%clk 0:00:04]}  Kc4 {[%clk 0:00:41]} 55. Bh4 {[%clk 0:00:05]}  Kb4 {[%clk 0:00:21]} 56. Be1+ {[%clk 0:00:05]}  Ka4 {[%clk 0:00:21]} 57. Bh4 {[%clk 0:00:06]}  Ne5 {[%clk 0:00:21]} 58. Bg3 {[%clk 0:00:05]}  Nf7 {[%clk 0:00:13]} 59. Bh4 {[%clk 0:00:05]}  Kb4 {[%clk 0:00:13]} 1/2-1/2


[Site "https://www.chess.com"]

[Event "Titled Tuesday Blitz February 15 Late 2022"]
[White "Sliwicki, Damian"]
[Black "Lin, Dachey"]
[WhiteFideId "1127128"]
[BlackFideId "2029650"]
[WhiteElo "2084"]
[BlackElo "2717"]
[Result "0-1"]
[Round "02"]
[TimeControl "180+1"]
[Date "2022.02.16"]
[WhiteClock "0:00:03"]
[BlackClock "0:01:08"]

1. e4 {[%clk 0:03:00]}  g6 {[%clk 0:02:57]} 2. d4 {[%clk 0:02:49]}  Bg7 {[%clk 0:02:58]} 3. Nc3 {[%clk 0:02:44]}  d5 {[%clk 0:02:58]} 4. exd5 {[%clk 0:02:09]}  Nf6 {[%clk 0:02:58]} 5. Bb5+ {[%clk 0:02:05]}  Nbd7 {[%clk 0:02:57]} 6. Nf3 {[%clk 0:02:04]}  O-O {[%clk 0:02:58]} 7. h4 {[%clk 0:02:00]}  Nb6 {[%clk 0:02:55]} 8. h5 {[%clk 0:02:00]}  Nxh5 {[%clk 0:02:52]} 9. Bg5 {[%clk 0:01:48]}  h6 {[%clk 0:02:49]} 10. Be3 {[%clk 0:01:45]}  Nxd5 {[%clk 0:02:47]} 11. Nxd5 {[%clk 0:01:46]}  Qxd5 {[%clk 0:02:47]} 12. Bd3 {[%clk 0:01:47]}  Bg4 {[%clk 0:02:42]} 13. Rh4 {[%clk 0:01:34]}  Nf6 {[%clk 0:02:30]} 14. Qd2 {[%clk 0:01:21]}  h5 {[%clk 0:02:28]} 15. c4 {[%clk 0:01:14]}  Qe6 {[%clk 0:02:20]} 16. O-O-O {[%clk 0:01:13]}  c5 {[%clk 0:02:04]} 17. d5 {[%clk 0:00:56]}  Qa6 {[%clk 0:02:01]} 18. Kb1 {[%clk 0:00:55]}  e6 {[%clk 0:01:52]} 19. Bxc5 {[%clk 0:00:52]}  Rfc8 {[%clk 0:01:52]} 20. Bd4 {[%clk 0:00:43]}  exd5 {[%clk 0:01:50]} 21. cxd5 {[%clk 0:00:42]}  Qa4 {[%clk 0:01:35]} 22. Bc2 {[%clk 0:00:38]}  Rxc2 {[%clk 0:01:33]} 23. Qxc2 {[%clk 0:00:38]}  Bf5 {[%clk 0:01:33]} 24. Rd3 {[%clk 0:00:33]}  Qb5 {[%clk 0:01:14]} 25. Ne1 {[%clk 0:00:17]}  Rc8 {[%clk 0:01:13]} 26. Bc3 {[%clk 0:00:11]}  Nxd5 {[%clk 0:01:10]} 27. a4 {[%clk 0:00:04]}  Nxc3+ {[%clk 0:01:07]} 28. Qxc3 {[%clk 0:00:03]}  Bxc3 {[%clk 0:01:07]} 29. axb5 {[%clk 0:00:03]}  Bxe1 {[%clk 0:01:08]} 0-1


[Site "https://www.chess.com"]

[Event "Titled Tuesday Blitz February 15 Late 2022"]
[White "Smith, Shreyas"]
[Black "Reprintsev, Alexander"]
[WhiteFideId "7400713"]
[BlackFideId "14100541"]
[WhiteElo "2129"]
[BlackElo "2126"]
[Result "0-1"]
[Round "02"]
[TimeControl "180+1"]
[Date "2022.02.16"]
[WhiteClock "0:00:01"]
[BlackClock "0:00:08"]

1. e4 {[%clk 0:03:00]}  d5 {[%clk 0:02:57]} 2. exd5 {[%clk 0:03:00]}  Qxd5 {[%clk 0:02:54]} 3. Nf3 {[%clk 0:03:00]}  Bg4 {[%clk 0:02:52]} 4. Be2 {[%clk 0:02:58]}  Nc6 {[%clk 0:02:52]} 5. c4 {[%clk 0:02:56]}  Qh5 {[%clk 0:02:50]} 6. d4 {[%clk 0:02:52]}  O-O-O {[%clk 0:02:44]} 7. Be3 {[%clk 0:02:49]}  e5 {[%clk 0:02:36]} 8. d5 {[%clk 0:02:47]}  e4 {[%clk 0:02:27]} 9. Nd4 {[%clk 0:02:21]}  Bxe2 {[%clk 0:02:08]} 10. Qxe2 {[%clk 0:02:22]}  Qxe2+ {[%clk 0:02:07]} 11. Kxe2 {[%clk 0:02:22]}  Ne5 {[%clk 0:02:06]} 12. b3 {[%clk 0:02:16]}  g6 {[%clk 0:01:57]} 13. Nc3 {[%clk 0:02:06]}  Nf6 {[%clk 0:01:46]} 14. h3 {[%clk 0:02:04]}  Bb4 {[%clk 0:01:39]} 15. Rhc1 {[%clk 0:01:56]}  Nd3 {[%clk 0:01:37]} 16. Rc2 {[%clk 0:01:54]}  Bxc3 {[%clk 0:01:24]} 17. Rxc3 {[%clk 0:01:53]}  Nh5 {[%clk 0:01:21]} 18. Rxd3 {[%clk 0:01:25]}  exd3+ {[%clk 0:01:19]} 19. Kxd3 {[%clk 0:01:26]}  Rhe8 {[%clk 0:01:17]} 20. g4 {[%clk 0:01:16]}  Nf6 {[%clk 0:01:02]} 21. Bg5 {[%clk 0:01:14]}  Ne4 {[%clk 0:01:02]} 22. Bxd8 {[%clk 0:00:58]}  Nxf2+ {[%clk 0:01:01]} 23. Kd2 {[%clk 0:00:47]}  Kxd8 {[%clk 0:01:01]} 24. Rf1 {[%clk 0:00:39]}  Ne4+ {[%clk 0:00:52]} 25. Kd3 {[%clk 0:00:37]}  Nc5+ {[%clk 0:00:50]} 26. Kd2 {[%clk 0:00:27]}  Re4 {[%clk 0:00:47]} 27. Nb5 {[%clk 0:00:20]}  a6 {[%clk 0:00:44]} 28. Nc3 {[%clk 0:00:20]}  Re7 {[%clk 0:00:44]} 29. Kc2 {[%clk 0:00:14]}  Ke8 {[%clk 0:00:43]} 30. b4 {[%clk 0:00:13]}  Ne4 {[%clk 0:00:43]} 31. Nxe4 {[%clk 0:00:09]}  Rxe4 {[%clk 0:00:43]} 32. Kd3 {[%clk 0:00:09]}  Re7 {[%clk 0:00:42]} 33. c5 {[%clk 0:00:09]}  Re5 {[%clk 0:00:37]} 34. Kd4 {[%clk 0:00:08]}  Re2 {[%clk 0:00:37]} 35. a4 {[%clk 0:00:07]}  Ke7 {[%clk 0:00:37]} 36. Rf3 {[%clk 0:00:05]}  Rd2+ {[%clk 0:00:33]} 37. Rd3 {[%clk 0:00:05]}  Ra2 {[%clk 0:00:20]} 38. a5 {[%clk 0:00:04]}  Rb2 {[%clk 0:00:19]} 39. Kc3 {[%clk 0:00:04]}  Re2 {[%clk 0:00:18]} 40. Kd4 {[%clk 0:00:04]}  Rb2 {[%clk 0:00:17]} 41. Re3+ {[%clk 0:00:03]}  Kd7 {[%clk 0:00:15]} 42. Kc3 {[%clk 0:00:03]}  Rf2 {[%clk 0:00:14]} 43. Rd3 {[%clk 0:00:02]}  f5 {[%clk 0:00:14]} 44. gxf5 {[%clk 0:00:02]}  gxf5 {[%clk 0:00:14]} 45. Rg3 {[%clk 0:00:02]}  h5 {[%clk 0:00:11]} 46. Rg7+ {[%clk 0:00:02]}  Kd8 {[%clk 0:00:11]} 47. d6 {[%clk 0:00:02]}  cxd6 {[%clk 0:00:11]} 48. cxd6 {[%clk 0:00:02]}  Rf4 {[%clk 0:00:11]} 49. Kd3 {[%clk 0:00:02]}  Rxb4 {[%clk 0:00:11]} 50. Rg5 {[%clk 0:00:02]}  Rh4 {[%clk 0:00:11]} 51. Rxf5 {[%clk 0:00:02]}  Kd7 {[%clk 0:00:11]} 52. Rg5 {[%clk 0:00:01]}  Kxd6 {[%clk 0:00:11]} 53. Rg7 {[%clk 0:00:01]}  Kc6 {[%clk 0:00:10]} 54. Rg6+ {[%clk 0:00:01]}  Kc5 {[%clk 0:00:09]} 55. Rg7 {[%clk 0:00:01]}  Kc6 {[%clk 0:00:09]} 56. Rg6+ {[%clk 0:00:01]}  Kb5 {[%clk 0:00:09]} 57. Rg7 {[%clk 0:00:01]}  Kxa5 {[%clk 0:00:09]} 58. Rxb7 {[%clk 0:00:01]}  Rxh3+ {[%clk 0:00:09]} 59. Ke4 {[%clk 0:00:01]}  Rh1 {[%clk 0:00:09]} 60. Kf3 {[%clk 0:00:01]}  Ka4 {[%clk 0:00:08]} 61. Kg2 {[%clk 0:00:01]}  Rh4 {[%clk 0:00:07]} 62. Kg3 {[%clk 0:00:01]}  Rb4 {[%clk 0:00:08]} 0-1


[Site "https://www.chess.com"]

[Event "Titled Tuesday Blitz February 15 Late 2022"]
[White "Stoleriu, George"]
[Black "Indjic, Aleksandar"]
[WhiteFideId "1227505"]
[BlackFideId "911925"]
[WhiteElo "2203"]
[BlackElo "2616"]
[Result "0-1"]
[Round "02"]
[TimeControl "180+1"]
[Date "2022.02.15"]
[WhiteClock "0:01:31"]
[BlackClock "0:01:19"]

1. e4 {[%clk 0:03:00]}  c6 {[%clk 0:03:00]} 2. Nf3 {[%clk 0:03:00]}  d5 {[%clk 0:02:59]} 3. exd5 {[%clk 0:03:01]}  cxd5 {[%clk 0:02:59]} 4. Ne5 {[%clk 0:03:02]}  Nc6 {[%clk 0:02:57]} 5. d4 {[%clk 0:03:01]}  e6 {[%clk 0:02:54]} 6. Bb5 {[%clk 0:02:56]}  Bd7 {[%clk 0:02:53]} 7. Nxd7 {[%clk 0:02:57]}  Qxd7 {[%clk 0:02:54]} 8. c3 {[%clk 0:02:57]}  Bd6 {[%clk 0:02:53]} 9. O-O {[%clk 0:02:53]}  f5 {[%clk 0:02:53]} 10. Nd2 {[%clk 0:02:51]}  Nf6 {[%clk 0:02:52]} 11. Nf3 {[%clk 0:02:51]}  O-O {[%clk 0:02:49]} 12. Ne5 {[%clk 0:02:51]}  Qc7 {[%clk 0:02:46]} 13. f4 {[%clk 0:02:52]}  a6 {[%clk 0:02:44]} 14. Bd3 {[%clk 0:02:50]}  Ne4 {[%clk 0:02:44]} 15. Be3 {[%clk 0:02:45]}  b5 {[%clk 0:02:31]} 16. Qe2 {[%clk 0:02:43]}  Na5 {[%clk 0:02:23]} 17. Rfc1 {[%clk 0:02:25]}  Nc4 {[%clk 0:02:22]} 18. b3 {[%clk 0:02:10]}  Nxe5 {[%clk 0:02:07]} 19. fxe5 {[%clk 0:02:03]}  Ba3 {[%clk 0:02:06]} 20. Rc2 {[%clk 0:01:54]}  Nxc3 {[%clk 0:02:05]} 21. Qe1 {[%clk 0:01:54]}  b4 {[%clk 0:02:03]} 22. Bd2 {[%clk 0:01:49]}  Qb6 {[%clk 0:02:01]} 23. Qh4 {[%clk 0:01:47]}  Rac8 {[%clk 0:01:48]} 24. Re1 {[%clk 0:01:42]}  Ne4 {[%clk 0:01:48]} 25. Be3 {[%clk 0:01:33]}  Rxc2 {[%clk 0:01:45]} 26. Bxc2 {[%clk 0:01:34]}  Bb2 {[%clk 0:01:44]} 27. Rd1 {[%clk 0:01:33]}  Rc8 {[%clk 0:01:22]} 28. Bd3 {[%clk 0:01:31]}  Bxd4 {[%clk 0:01:19]} 0-1


[Site "https://www.chess.com"]

[Event "Titled Tuesday Blitz February 15 Late 2022"]
[White "Szpar, Milosz"]
[Black "Levine, Joseph"]
[WhiteFideId "1184989"]
[BlackFideId "30940346"]
[WhiteElo "2447"]
[BlackElo "1802"]
[Result "0-1"]
[Round "02"]
[TimeControl "180+1"]
[Date "2022.02.16"]
[WhiteClock "0:01:47"]
[BlackClock "0:01:41"]

1. e4 {[%clk 0:03:00]}  e6 {[%clk 0:03:00]} 2. f4 {[%clk 0:03:00]}  d5 {[%clk 0:03:01]} 3. e5 {[%clk 0:03:00]}  c5 {[%clk 0:03:01]} 4. Nf3 {[%clk 0:03:00]}  Nc6 {[%clk 0:03:02]} 5. c3 {[%clk 0:03:01]}  f6 {[%clk 0:03:02]} 6. d4 {[%clk 0:03:00]}  cxd4 {[%clk 0:02:59]} 7. cxd4 {[%clk 0:03:00]}  fxe5 {[%clk 0:02:59]} 8. fxe5 {[%clk 0:03:00]}  Nge7 {[%clk 0:02:58]} 9. Bd3 {[%clk 0:02:59]}  Nf5 {[%clk 0:02:56]} 10. O-O {[%clk 0:02:58]}  Be7 {[%clk 0:02:52]} 11. Nc3 {[%clk 0:02:57]}  O-O {[%clk 0:02:50]} 12. Ne2 {[%clk 0:02:57]}  Bd7 {[%clk 0:02:47]} 13. Kh1 {[%clk 0:02:57]}  Rc8 {[%clk 0:02:46]} 14. a3 {[%clk 0:02:56]}  h6 {[%clk 0:02:42]} 15. b4 {[%clk 0:02:54]}  a6 {[%clk 0:02:40]} 16. Qd2 {[%clk 0:02:54]}  Na7 {[%clk 0:02:39]} 17. a4 {[%clk 0:02:52]}  Nc6 {[%clk 0:02:34]} 18. Rb1 {[%clk 0:02:49]}  Na7 {[%clk 0:02:26]} 19. Qa2 {[%clk 0:02:40]}  Qe8 {[%clk 0:02:07]} 20. Bd2 {[%clk 0:02:13]}  Bxa4 {[%clk 0:01:58]} 21. g4 {[%clk 0:02:14]}  Bb5 {[%clk 0:01:47]} 22. Bxb5 {[%clk 0:02:04]}  Qxb5 {[%clk 0:01:45]} 23. Nc3 {[%clk 0:02:04]}  Rxc3 {[%clk 0:01:44]} 24. Bxc3 {[%clk 0:02:05]}  Ne3 {[%clk 0:01:44]} 25. Kg1 {[%clk 0:01:46]}  Nxf1 {[%clk 0:01:42]} 26. Rxf1 {[%clk 0:01:47]}  Qd3 {[%clk 0:01:41]} 0-1


[Site "https://www.chess.com"]

[Event "Titled Tuesday Blitz February 15 Late 2022"]
[White "Tan, Jun Ying"]
[Black "Moral Garcia, Serafin"]
[WhiteFideId "5710413"]
[BlackFideId "2201925"]
[WhiteElo "1827"]
[BlackElo "2228"]
[Result "1-0"]
[Round "02"]
[TimeControl "180+1"]
[Date "2022.02.16"]
[WhiteClock "0:02:08"]
[BlackClock "0:02:07"]

1. d4 {[%clk 0:03:00]}  Nf6 {[%clk 0:02:59]} 2. c4 {[%clk 0:03:01]}  g6 {[%clk 0:02:59]} 3. Nc3 {[%clk 0:03:01]}  d5 {[%clk 0:02:59]} 4. Nf3 {[%clk 0:03:00]}  Bg7 {[%clk 0:02:58]} 5. h4 {[%clk 0:03:01]}  dxc4 {[%clk 0:02:57]} 6. e4 {[%clk 0:02:57]}  Bg4 {[%clk 0:02:56]} 7. Bxc4 {[%clk 0:02:51]}  Nc6 {[%clk 0:02:56]} 8. e5 {[%clk 0:02:36]}  Bxf3 {[%clk 0:02:47]} 9. gxf3 {[%clk 0:02:32]}  Nd7 {[%clk 0:02:38]} 10. Be3 {[%clk 0:02:31]}  Nb6 {[%clk 0:02:35]} 11. Bb3 {[%clk 0:02:29]}  Nb4 {[%clk 0:02:30]} 12. h5 {[%clk 0:02:26]}  O-O {[%clk 0:02:22]} 13. hxg6 {[%clk 0:02:21]}  hxg6 {[%clk 0:02:21]} 14. Qd2 {[%clk 0:02:21]}  N4d5 {[%clk 0:02:08]} 15. Bh6 {[%clk 0:02:17]}  Bh8 {[%clk 0:02:08]} 16. Nxd5 {[%clk 0:02:10]}  Nxd5 {[%clk 0:02:07]} 17. Bxf8 {[%clk 0:02:08]} 1-0


[Site "https://www.chess.com"]